fUSD/lending_fUSD_20260311
["ID","MTS","AMOUNT","RATE_DAILY","PERIOD"]
[408193960,1773204646018,-328.104107,0.000411,28]
[408193961,1773204646027,-328.104107,0.000411,28]
[408193962,1773204646037,-328.104105,0.000411,28]
[408193963,1773204646047,-155.0,0.000412,120]
[408193964,1773204646057,-282.56,0.0004127,120]
[408193965,1773204646066,-150.0,0.0004127,120]
[408193966,1773204646078,-155.0,0.000414,120]
[408193967,1773204646087,-255.44933633,0.000415,120]
[408193968,1773204646097,-350.0,0.00041539,6]
[408193969,1773204646111,-353.4369477,0.00041554,6]
[408193970,1773204646121,-1000.0,0.00041644,10]
[408193971,1773204646130,-535217.4192846,0.00041781,7]
[408193972,1773204646139,-7975.8007921,0.00041781,7]
[408193973,1773204646150,-165.705384,0.00041781,120]
[408193974,1773204646159,-151.0,0.00041781,120]
[408193975,1773204646168,-151.0,0.00041781,120]
[408193976,1773204646177,-151.0,0.00041781,120]
[408193978,1773204646186,-209.316327,0.00041781,120]
[408193980,1773204646195,-209.316327,0.00041781,120]
[408193981,1773204646204,-209.316327,0.00041781,120]
[408193982,1773204646214,-209.316327,0.00041781,120]
[408193983,1773204646223,-151.0,0.00041781,120]
[408193984,1773204646232,-151.0,0.00041781,120]
[408193985,1773204646241,-151.77131007,0.000418,90]
[408193986,1773204646251,-151.0,0.00041918,120]
[408193987,1773204646260,-151.0,0.00041918,120]
[408193988,1773204646270,-151.0,0.00041918,120]
[408193989,1773204646280,-151.0,0.00041918,120]
[408193990,1773204646289,-151.0,0.00041918,120]
[408193991,1773204646298,-151.0,0.00041918,120]
[408193992,1773204646307,-151.0,0.00041918,120]
[408193993,1773204646316,-151.0,0.00041918,120]
[408193994,1773204646325,-151.0,0.00041918,120]
[408193995,1773204646335,-297.678256,0.00041918,120]
[408193996,1773204646344,-164.039615,0.00041918,120]
[408193997,1773204646353,-151.0,0.00041918,120]
[408193998,1773204646363,-151.0,0.00041918,120]
[408193999,1773204646372,-151.0,0.00041918,120]
[408194000,1773204646383,-151.0,0.00041918,120]
[408194001,1773204646392,-151.0,0.00041918,120]
[408194002,1773204646401,-151.0,0.00041918,120]
[408194003,1773204646412,-151.0,0.00041918,120]
[408194004,1773204646422,-151.0,0.00041918,120]
[408194005,1773204646432,-151.0,0.00041918,120]
[408194006,1773204646442,-151.0,0.00041918,120]
[408194007,1773204646451,-151.0,0.00041918,120]
[408194008,1773204646460,-151.0,0.00041918,120]
[408194009,1773204646469,-151.0,0.00041918,120]
[408194010,1773204646479,-151.0,0.00041918,120]
[408194011,1773204646489,-151.0,0.00041918,120]
[408194012,1773204646498,-151.0,0.00041918,120]
[408194013,1773204646507,-217.96833,0.00041918,120]
[408194014,1773204646517,-151.0,0.00041918,120]
[408194015,1773204646526,-151.0,0.00041918,120]
[408194016,1773204646537,-151.0,0.00041918,120]
[408194017,1773204646548,-151.0,0.00041918,120]
[408194018,1773204646558,-151.0,0.00041918,120]
[408194019,1773204646567,-283.098764,0.00041918,120]
[408194020,1773204646577,-151.0,0.00041918,120]
[408194021,1773204646586,-151.0,0.00041918,120]
[408194022,1773204646595,-151.0,0.00041918,120]
[408194023,1773204646604,-151.0,0.00041918,120]
[408194024,1773204646614,-151.0,0.00041918,120]
[408194025,1773204646623,-151.0,0.00041918,120]
[408194026,1773204646632,-151.0,0.00041918,120]
[408194027,1773204646641,-151.0,0.00041918,120]
[408194028,1773204646651,-151.0,0.00041918,120]
[408194029,1773204646661,-151.0,0.00041918,120]
[408194030,1773204646671,-151.0,0.00041918,120]
[408194031,1773204646680,-151.0,0.00041918,120]
[408194032,1773204646690,-151.0,0.00041918,120]
[408194033,1773204646699,-151.0,0.00041918,120]
[408194034,1773204646709,-151.0,0.00041918,120]
[408194035,1773204646719,-243.305221,0.00041918,120]
[408194036,1773204646728,-151.0,0.00041918,120]
[408194037,1773204646740,-151.0,0.00041918,120]
[408194038,1773204646749,-151.0,0.00041918,120]
[408194039,1773204646758,-151.0,0.00041918,120]
[408194040,1773204646767,-151.0,0.00041918,120]
[408194041,1773204646776,-151.0,0.00041918,120]
[408194042,1773204646785,-151.0,0.00041918,120]
[408194043,1773204646795,-151.0,0.00041918,120]
[408194044,1773204646804,-151.0,0.00041918,120]
[408194045,1773204646813,-168.283615,0.00041918,120]
[408194046,1773204646823,-318.424943,0.00041918,120]
[408194047,1773204646833,-318.424943,0.00041918,120]
[408194048,1773204646842,-318.424943,0.00041918,120]
[408194049,1773204646851,-318.424943,0.00041918,120]
[408194050,1773204646860,-318.424943,0.00041918,120]
[408194051,1773204646870,-318.424943,0.00041918,120]
[408194052,1773204646880,-318.424943,0.00041918,120]
[408194053,1773204646889,-318.424943,0.00041918,120]
[408194054,1773204646898,-318.424943,0.00041918,120]
[408194055,1773204646907,-318.424943,0.00041918,120]
[408194056,1773204646916,-318.424943,0.00041918,120]
[408194057,1773204646926,-318.424943,0.00041918,120]
[408194058,1773204646939,-318.424943,0.00041918,120]
[408194059,1773204646948,-318.424943,0.00041918,120]
[408194060,1773204646957,-318.424943,0.00041918,120]
[408194061,1773204646966,-318.424943,0.00041918,120]
[408194062,1773204646976,-151.0,0.00041918,120]
[408194063,1773204646985,-151.0,0.00041918,120]
[408194064,1773204646994,-171.289408,0.00041918,120]
[408194065,1773204647007,-254.130547,0.00041918,120]
[408194066,1773204647020,-196.636787,0.00041918,120]
[408194067,1773204647029,-151.0,0.00041918,120]
[408194068,1773204647038,-229.012841,0.00041918,120]
[408194069,1773204647050,-181.26164079,0.00042,30]
[408194070,1773204647059,-154.86,0.00042,120]
[408194071,1773204647068,-1000.0,0.00042,120]
[408194072,1773204647078,-1000.0,0.00042,120]
[408194073,1773204647087,-1000.0,0.00042,120]
[408194074,1773204647096,-161.48249124,0.00042121,120]
[408194075,1773204647106,-150.0,0.00042173,120]
[408194076,1773204647115,-457.048,0.0004222,7]
[408194077,1773204647124,-200.0,0.00042224,120]
[408194078,1773204647136,-618.41240475,0.000423,120]
[408194079,1773204647145,-1117.0,0.000423,60]
[408194080,1773204647154,-1556.9041907,0.000425,120]
[408194081,1773204647163,-155.0,0.000425,120]
[408194082,1773204647172,-350.0,0.00042512,5]
[408194083,1773204647181,-163.2515758,0.000427,120]
[408194084,1773204647190,-300.0,0.00042727,2]
[408194085,1773204647199,-300.0,0.00042727,2]
[408194086,1773204647209,-300.0,0.00042727,2]
[408194087,1773204647219,-300.0,0.00042727,2]
[408194088,1773204647228,-300.0,0.00042727,2]
[408194089,1773204647237,-300.0,0.00042727,2]
[408194090,1773204647247,-370.26399,0.00042727,2]
[408194091,1773204647256,-300.0,0.00042727,2]
[408194092,1773204647265,-300.0,0.00042727,2]
[408194093,1773204647274,-300.0,0.00042727,2]
[408194094,1773204647283,-300.0,0.00042727,2]
[408194095,1773204647292,-300.0,0.00042727,2]
[408194096,1773204647301,-300.0,0.00042727,2]
[408194097,1773204647311,-520.35590237,0.00042727,2]
[408194098,1773204647320,-300.0,0.00042727,2]
[408194099,1773204647329,-300.0,0.00042727,2]
[408194100,1773204647339,-300.0,0.00042727,2]
[408194101,1773204647348,-300.0,0.00042727,2]
[408194102,1773204647357,-300.0,0.00042727,2]
[408194103,1773204647366,-300.0,0.00042727,2]
[408194104,1773204647376,-4000.0,0.0004274,14]
[408194105,1773204647385,-781.25180054,0.0004274,10]
[408194106,1773204647394,-350.0,0.00042752,6]
[408194107,1773204647403,-155.0,0.000428,120]
[408194108,1773204647412,-226.21,0.000429,60]
[408194109,1773204647421,-1583.41,0.000429,60]
[408194110,1773204647431,-723.5598641,0.00043,120]
[408194111,1773204647440,-1000.0,0.00043,120]
[408194112,1773204647449,-1000.0,0.00043,120]
[408194113,1773204647459,-600.0,0.00043,120]
[408194114,1773204647468,-600.0,0.00043,120]
[408194115,1773204647477,-600.0,0.00043,120]
[408194116,1773204647486,-600.0,0.00043,120]
[408194117,1773204647495,-600.0,0.00043,120]
[408194118,1773204647504,-200.0,0.00043068,120]
[408194119,1773204647521,-200.0,0.00043068,120]
[408194120,1773204647534,-200.0,0.00043068,120]
[408194121,1773204647544,-200.0,0.00043068,120]
[408194122,1773204647553,-200.0,0.00043068,120]
[408194123,1773204647563,-200.0,0.00043068,120]
[408194124,1773204647572,-200.0,0.00043068,120]
[408194125,1773204647582,-200.0,0.00043068,120]
[408194126,1773204647592,-200.0,0.00043068,120]
[408194127,1773204647601,-19742.04,0.000431,14]
[408194128,1773204647611,-182.49213395,0.00043249,98]
[408194129,1773204647620,-502.0,0.0004325,26]
[408194130,1773204647629,-198.72,0.000433,60]
[408194131,1773204647639,-163.13,0.000433,60]
[408194132,1773204647649,-350.0,0.00043335,6]
[408194133,1773204647658,-1117.0,0.0004365,60]
[408194134,1773204647668,-155.0,0.000437,120]
[408194135,1773204647679,-281.0,0.000438,60]
[408194136,1773204647689,-500.0,0.00043835,120]
[408194137,1773204647699,-786.0,0.00043836,120]
[408194138,1773204647708,-200.0,0.00043841,120]
[408194139,1773204647718,-304.27684042,0.00044,120]
[408194140,1773204647728,-272.29887845,0.00044,120]
[408194141,1773204647737,-1000.0,0.00044,120]
[408194142,1773204647747,-518.56747682,0.00044246,120]
[408194143,1773204647756,-150.0,0.00044281,120]
[408194144,1773204647765,-155.0,0.000443,120]
[408194145,1773204647775,-366.69,0.00044384,120]
[408194146,1773204647784,-786.0,0.00044384,120]
[408194147,1773204647793,-1078.96417025,0.0004444,120]
[408194148,1773204647803,-786.0,0.00044658,120]
[408194149,1773204647813,-1137.54374348,0.00044727,2]
[408194150,1773204647823,-3771.821,0.0004475,71]
[408194151,1773204647834,-4633.89,0.00044831,2]
[408194152,1773204647844,-992.98,0.00044831,2]
[408194153,1773204647855,-992.97,0.00044831,2]
[408194154,1773204647864,-399.76705102,0.000449,30]
[408194155,1773204647873,-155.0,0.000449,120]
[408194156,1773204647886,-543.6,0.000449,30]
[408194157,1773204647895,-786.0,0.00044932,120]
[408194158,1773204647905,-1000.0,0.00045,120]
[408194159,1773204647914,-1219.39201702,0.00045,120]
[408194160,1773204647923,-671.42231039,0.00045,120]
[408194161,1773204647933,-5500.0,0.00045,120]
[408194162,1773204647943,-1000.0,0.00045,14]
[408194163,1773204647952,-1000.0,0.00045,14]
[408194164,1773204647961,-1000.0,0.00045,14]
[408194165,1773204647971,-1000.0,0.00045,14]
[408194166,1773204647980,-1000.0,0.00045,14]
[408194167,1773204647989,-1000.0,0.00045,14]
[408194168,1773204647999,-647.36,0.00045,120]
[408194169,1773204648012,-372.25,0.00045,120]
[408194170,1773204648022,-404.42,0.00045,120]
[408194171,1773204648032,-301.08,0.00045,120]
[408194172,1773204648041,-1117.0,0.00045,60]
[408194173,1773204648053,-153.99327857,0.00045,30]
[408194174,1773204648063,-154.96066654,0.00045,30]
[408194175,1773204648073,-154.08029391,0.00045,30]
[408194176,1773204648083,-150.0,0.00045,30]
[408194177,1773204648092,-155.97528234,0.00045,30]
[408194178,1773204648101,-152.12389572,0.00045,30]
[408194179,1773204648111,-5330.4026,0.00045032,30]
[408194180,1773204648120,-294.76356774,0.00045123,90]
[408194181,1773204648129,-378.80910296,0.00045205,120]
[408194182,1773204648139,-786.0,0.00045205,120]
[408194183,1773204648224,-161.0,0.00045277,16]
[408194184,1773204648234,-19742.04,0.000453,14]
[408194185,1773204648243,-200.0,0.00045458,120]
[408194186,1773204648252,-1870.53228072,0.00045472,2]
[408194187,1773204648263,-786.0,0.00045479,120]
[408194188,1773204648272,-3357.0,0.000457,120]
[408194189,1773204648281,-3358.0,0.000457,120]
[408194190,1773204648290,-155.0,0.000457,120]
[408194191,1773204648299,-786.0,0.00045753,120]
[408194192,1773204648308,-540.27,0.00045798,30]
[408194193,1773204648317,-150.0,0.00045931,120]
[408194194,1773204648326,-151.94356594,0.00046,120]
[408194195,1773204648338,-300059.69993999,0.00046,30]
[408194196,1773204648353,-1990.75222793,0.00046,120]
[408194197,1773204648362,-959.95077139,0.00046,120]
[408194198,1773204648372,-151.0,0.00046,120]
[408194199,1773204648381,-151.0,0.00046,120]
[408194200,1773204648391,-151.0,0.00046,120]
[408194201,1773204648401,-151.0,0.00046,120]
[408194202,1773204648411,-151.0,0.00046,120]
[408194203,1773204648419,-151.0,0.00046,120]
[408194204,1773204648428,-151.0,0.00046,120]
[408194205,1773204648438,-151.0,0.00046,120]
[408194206,1773204648447,-151.0,0.00046,120]
[408194207,1773204648456,-318.424943,0.00046,120]
[408194208,1773204648465,-318.424943,0.00046,120]
[408194209,1773204648475,-318.424943,0.00046,120]
[408194210,1773204648484,-318.424935,0.00046,120]
[408194211,1773204648493,-209.316327,0.00046,120]
[408194212,1773204648502,-209.316327,0.00046,120]
[408194213,1773204648511,-209.316327,0.00046,120]
[408194214,1773204648520,-209.316336,0.00046,120]
[408194215,1773204648531,-151.0,0.00046,120]
[408194216,1773204648540,-786.0,0.00046027,120]
[408194217,1773204648549,-2807.0,0.0004612,16]
[408194218,1773204648558,-155.0,0.000462,120]
[408194219,1773204648567,-786.0,0.00046301,120]
[408194220,1773204648575,-293.0,0.00046339,120]
[408194221,1773204648584,-1117.0,0.0004635,60]
[408194222,1773204648593,-161.0,0.00046355,16]
[408194223,1773204648603,-1531.52255215,0.00046471,18]
[408194224,1773204648612,-1531.52255215,0.00046471,18]
[408194225,1773204648622,-1531.52255215,0.00046471,18]
[408194226,1773204648631,-1531.52255215,0.00046471,18]
[408194227,1773204648640,-1531.52255215,0.00046471,18]
[408194228,1773204648650,-1531.52255215,0.00046471,18]
[408194229,1773204648659,-1531.52255215,0.00046471,18]
[408194230,1773204648667,-2897.04286246,0.00046472,120]
[408194231,1773204648677,-150.0,0.00046495,120]
[408194232,1773204648686,-150.87036366,0.00046499,120]
[408194233,1773204648695,-543.6,0.000465,30]
[408194234,1773204648704,-786.0,0.00046575,120]
[408194235,1773204648714,-2807.0,0.00046763,16]
[408194236,1773204648723,-450.0,0.0004677,120]
[408194237,1773204648732,-390.52860306,0.000468,120]
[408194238,1773204648743,-1000.0,0.000468,17]
[408194239,1773204648752,-786.0,0.00046849,120]
[408194240,1773204648762,-751.12555239,0.000469,120]
[408194241,1773204648771,-1000.0,0.000469,17]
[408194242,1773204648780,-1500.0,0.0004698,120]
[408194243,1773204648789,-207.784981,0.00047,120]
[408194244,1773204648798,-5094.0,0.00047,120]
[408194245,1773204648808,-1000.0,0.00047,120]
[408194246,1773204648817,-200.0,0.00047074,120]
[408194247,1773204648826,-155.0,0.000471,120]
[408194248,1773204648835,-1000.0,0.000471,2]
[408194249,1773204648844,-1044.5,0.0004711,120]
[408194250,1773204648853,-786.0,0.00047123,120]
[408194251,1773204648862,-163.44666261,0.000473,90]
[408194252,1773204648871,-161.0,0.00047343,16]
[408194253,1773204648880,-3030.81112781,0.00047371,28]
[408194254,1773204648889,-176.04305708,0.00047372,2]
[408194255,1773204648898,-1607.49510153,0.00047372,2]
[408194256,1773204648908,-5774.90029981,0.00047372,2]
[408194257,1773204648917,-361.37942272,0.00047372,2]
[408194258,1773204648925,-745.12415339,0.00047397,120]
[408194259,1773204649022,-40.87584661,0.00047397,120]
[408194260,1773204649032,-151.0,0.00047397,25]
[408194261,1773204649041,-151.0,0.00047397,25]
[408194262,1773204649052,-108.49758992,0.00047397,25]
[408194263,1773204649164,-27.28643493,0.0001626,2]
[408194264,1773204649215,-4627.88832412,0.0001626,2]
[408194265,1773204649259,-16.92633848,0.0001626,2]
[408194266,1773204819438,-500.0,0.00014273,2]
[408194267,1773205120187,10000.0,0.00013699,2]
[408194268,1773205123539,-524.5,0.00013699,2]
[408194269,1773205130940,3951.01,0.00013699,2]
[408194270,1773205138302,-3951.02,0.00013699,2]
[408194271,1773205138479,-2097.97,0.00013699,2]
[408194272,1773205146332,3004.85,0.00013699,2]
[408194278,1773205354023,518.80557114,0.0001,2]
[408194279,1773205714505,-4767.38,0.00013547,2]
[408194280,1773205825412,-249.84458593,0.00013628,2]
[408194281,1773205825439,-204.06136,0.00013664,2]
[408194282,1773205825466,-250.0,0.00013666,2]
[408194283,1773205825491,-352.19810814,0.00013668,2]
[408194284,1773205828284,-2112.20810814,0.00013668,2]
[408194285,1773205831361,-775.59378372,0.00013668,2]
[408194286,1773205831387,-23.67243256,0.00013728,2]
[408194294,1773205832041,-3401.47756744,0.00013728,2]
[408194295,1773205832052,-250.0,0.00013821,2]
[408194296,1773205832063,-249.84458592,0.00014001,2]
[408194297,1773205832073,-1200.0,0.0001402,2]
[408194298,1773205832083,-300.0,0.00014021,2]
[408194299,1773205832097,-300.0,0.00014021,2]
[408194300,1773205832106,-300.0,0.00014021,2]
[408194301,1773205832115,-300.0,0.00014021,2]
[408194302,1773205832124,-5000.0,0.00014022,2]
[408194303,1773205832133,-5000.0,0.00014046,2]
[408194304,1773205832144,-2387.61904,0.00014046,2]
[408194305,1773205832153,-500.0,0.00014103,2]
[408194306,1773205832162,-195.74494083,0.00014366,2]
[408194307,1773205832172,-249.84458592,0.00014373,2]
[408194308,1773205832181,-1500.0,0.00014383,2]
[408194309,1773205832190,-4243.85332309,0.0001439,2]
[408194310,1773205832199,-2000.0,0.00014398,2]
[408194311,1773205832208,-150.0,0.00014403,2]
[408194312,1773205832218,-58055.6222,0.00014404,2]
[408194313,1773205832227,-1710.0,0.00014468,2]
[408194314,1773205832236,-175.64517432,0.00014468,2]
[408194315,1773205832246,-500.0,0.00014473,2]
[408194316,1773205832256,-500.0,0.00014473,2]
[408194317,1773205832265,-500.0,0.00014473,2]
[408194318,1773205832275,-500.0,0.00014473,2]
[408194319,1773205832285,-503.26645979,0.00014473,2]
[408194320,1773205832294,-167.23452348,0.00014473,2]
[408194321,1773205832304,-500.0,0.00014473,2]
[408194322,1773205832313,-501.97456647,0.00014473,2]
[408194323,1773205832322,-501.38283497,0.00014473,2]
[408194324,1773205832332,-500.0,0.00014473,2]
[408194325,1773205832342,-500.0,0.00014473,2]
[408194326,1773205832353,-483.23283684,0.00014487,2]
[408194327,1773205832366,-483.23283684,0.00014487,2]
[408194328,1773205832375,-483.23283684,0.00014487,2]
[408194329,1773205832386,-483.23283684,0.00014487,2]
[408194330,1773205832395,-483.23283684,0.00014487,2]
[408194331,1773205832406,-483.23283684,0.00014487,2]
[408194332,1773205832415,-483.23283684,0.00014487,2]
[408194333,1773205832424,-483.23283684,0.00014487,2]
[408194334,1773205832435,-150.99,0.00014504,2]
[408194335,1773205832444,-3622.77,0.00014504,2]
[408194336,1773205832453,-499.99,0.00014504,2]
[408194337,1773205832463,-150.99,0.00014504,2]
[408194338,1773205832472,-299.99,0.00014504,2]
[408194339,1773205832481,-355.11250593,0.00014582,2]
[408194340,1773205832491,-408.4947,0.00014645,2]
[408194341,1773205832503,-248.96637254,0.00014682,2]
[408194342,1773205832512,-542.59073283,0.00014738,2]
[408194343,1773205832521,-43735.34919483,0.0001474,2]
[408194344,1773205832533,-21761.54167354,0.0001474,2]
[408194345,1773205832543,-11453.63,0.0001474,2]
[408194346,1773205832552,-500.0,0.00014749,2]
[408194347,1773205832561,-500.0,0.00014749,2]
[408194348,1773205832570,-591.03677612,0.00014749,2]
[408194349,1773205832580,-500.0,0.00014749,2]
[408194350,1773205832590,-500.0,0.00014749,2]
[408194351,1773205832599,-500.0,0.00014749,2]
[408194352,1773205832609,-500.0,0.00014749,2]
[408194353,1773205832618,-500.0,0.00014749,2]
[408194354,1773205832628,-500.0,0.00014749,2]
[408194355,1773205832637,-500.0,0.00014749,2]
[408194356,1773205832646,-500.0,0.00014749,2]
[408194357,1773205832656,-500.0,0.00014749,2]
[408194358,1773205832665,-500.0,0.00014749,2]
[408194359,1773205832675,-500.0,0.00014749,2]
[408194360,1773205832684,-500.0,0.00014749,2]
[408194361,1773205832694,-500.0,0.00014749,2]
[408194362,1773205832703,-500.0,0.00014749,2]
[408194363,1773205832713,-500.0,0.00014749,2]
[408194364,1773205832723,-500.0,0.00014749,2]
[408194365,1773205832733,-159.24449362,0.00014749,2]
[408194366,1773205832743,-500.0,0.00014749,2]
[408194367,1773205832752,-43669.6154277,0.0001475,2]
[408194373,1773205838012,-33048.84354458,0.0001475,2]
[408194374,1773205838022,-234.81595298,0.00014773,2]
[408194375,1773205838030,-163.26994113,0.00014773,2]
[408194376,1773205838039,-500.0,0.00014773,2]
[408194377,1773205838049,-500.89837554,0.00014773,2]
[408194378,1773205838059,-500.0,0.00014773,2]
[408194379,1773205838068,-500.0,0.00014773,2]
[408194380,1773205838077,-500.0,0.00014773,2]
[408194381,1773205838086,-500.0,0.00014773,2]
[408194382,1773205838095,-500.0,0.00014773,2]
[408194383,1773205838104,-501.068818,0.00014773,2]
[408194384,1773205838114,-248.95116502,0.00014908,2]
[408194385,1773205838123,-4213.39930839,0.00014991,2]
[408194386,1773205838132,-500.0,0.00014991,2]
[408194387,1773205838141,-305.70426919,0.00014991,2]
[408194388,1773205838150,-319.65345292,0.00015021,2]
[408194389,1773205838159,-1000.0,0.00015021,2]
[408194390,1773205838168,-1001.57053664,0.00015021,2]
[408194391,1773205838177,-1000.0,0.00015021,2]
[408194392,1773205838186,-1000.0,0.00015021,2]
[408194393,1773205838195,-237.45061676,0.00015021,2]
[408194394,1773205838205,-250.0,0.0001503,2]
[408194395,1773205838214,-500.0,0.00015047,2]
[408194396,1773205838223,-150.0,0.00015047,2]
[408194397,1773205838232,-505.28661314,0.00015102,2]
[408194399,1773205838241,-667.0,0.0001519,2]
[408194400,1773205838250,-502.79953242,0.00015321,2]
[408194401,1773205838260,-350.37328312,0.00015321,2]
[408194402,1773205838269,-1000.0,0.00015321,2]
[408194403,1773205838278,-196.88903147,0.00015321,2]
[408194404,1773205838287,-420.0,0.00015361,2]
[408194406,1773205838296,-5000.0,0.00015419,2]
[408194407,1773205838305,-1680.0,0.00015422,2]
[408194409,1773205838314,-255.0,0.00015527,2]
[408194412,1773205838324,-1500.0,0.00015568,2]
[408194414,1773205838333,-1002.91011337,0.00015568,2]
[408194415,1773205838343,-1500.0,0.00015568,2]
[408194416,1773205838352,-1000.0,0.00015665,7]
[408194417,1773205838364,-3030.81112781,0.0001586,2]
[408194418,1773205838374,-515.86,0.00015902,2]
[408194419,1773205838383,-7667.06945967,0.00015912,2]
[408194420,1773205838392,-4857.81314367,0.0001596,2]
[408194421,1773205838403,-150.88312785,0.00016,2]
[408194422,1773205838412,-7999.09,0.00016116,2]
[408194423,1773205838420,-651.11556502,0.00016116,2]
[408194424,1773205838430,-1004.90829082,0.00016116,2]
[408194425,1773205838440,-2500.0,0.0001616,2]
[408194426,1773205838449,-2000.0,0.00016197,2]
[408194427,1773205838458,-3753.69792134,0.000162,5]
[408194428,1773205838470,-524.0,0.000162,5]
[408194429,1773205838481,-722.30217516,0.000162,5]
[408194430,1773205838490,-12426.13295026,0.00016205,2]
[408194434,1773205840085,-2168.84106652,0.00016205,2]
[408194435,1773205840301,-3763.21038502,0.00016205,2]
[408194436,1773205840312,-515.86,0.0001625,2]
[408194437,1773205840321,-39570.11348067,0.0001626,2]
[408194438,1773205840334,-4094.76711426,0.00016297,2]
[408194439,1773205840343,-255.076701,0.00016397,7]
[408194440,1773205840353,-3030.81112781,0.00016437,2]
[408194441,1773205840366,-4094.76711425,0.00016697,2]
[408194442,1773205840375,-558.0,0.00016712,2]
[408194443,1773205840384,-255.0,0.00016737,2]
[408194444,1773205840394,-423.0,0.00016828,2]
[408194445,1773205840403,-500.0,0.00016899,2]
[408194446,1773205840412,-200.0,0.000169,6]
[408194447,1773205840422,-2351.0,0.00016964,2]
[408194448,1773205840431,-174.24870039,0.00016983,4]
[408194449,1773205840442,-515.86,0.0001699,2]
[408194450,1773205840451,-515.86,0.0001699,2]
[408194451,1773205840460,-515.86,0.0001699,2]
[408194452,1773205840470,-11453.63,0.0001699,2]
[408194453,1773205840479,-312391.96934228,0.00017,2]
[408194454,1773205840488,-502.0,0.00017,2]
[408194455,1773205840497,-3030.81112781,0.00017014,2]
[408194456,1773205840507,-4094.76711425,0.00017098,2]
[408194457,1773205840516,-54257.45528292,0.000171,2]
[408194458,1773205840525,-10971.29428194,0.0001711,2]
[408194459,1773205840535,-4094.76711425,0.00017498,2]
[408194460,1773205840548,-3030.81112781,0.00017591,2]
[408194461,1773205840560,-6163.82,0.00017659,2]
[408194462,1773205840570,-701.45818653,0.000177,2]
[408194463,1773205840580,-1007.29218035,0.0001786,2]
[408194464,1773205840589,-1229.03787992,0.0001789,2]
[408194465,1773205840598,-1076.97554217,0.0001789,2]
[408194466,1773205840607,-4094.76711425,0.00017898,2]
[408194467,1773205840616,-20000.0,0.0001799,2]
[408194468,1773205840625,-2000.0,0.00017997,2]
[408194469,1773205840635,-9731.36429166,0.00018,5]
[408194470,1773205840643,-5583.27168853,0.00018,7]
[408194471,1773205840653,-24370.65473499,0.00018,2]
[408194472,1773205840662,-250.0,0.00018007,2]
[408194473,1773205840671,-3030.81112781,0.00018169,2]
[408194474,1773205840680,-4094.76711425,0.00018299,2]
[408194475,1773205840688,-4094.76711425,0.00018699,2]
[408194476,1773205840697,-3030.81112781,0.00018746,2]
[408194477,1773205840706,-4094.76711425,0.00019099,2]
[408194478,1773205840715,-168.0,0.0001925,2]
[408194479,1773205840724,-500.0,0.0001929,2]
[408194480,1773205840733,-501.54386851,0.0001929,2]
[408194481,1773205840745,-3030.81112781,0.00019323,2]
[408194482,1773205840754,-400.0,0.000194,7]
[408194483,1773205840763,-4094.76711425,0.000195,2]
[408194484,1773205840772,-5625.10591086,0.000195,3]
[408194485,1773205840782,-600.0,0.000195,7]
[408194486,1773205840791,-9871.7724241,0.00019527,2]
[408194487,1773205840800,-168.0,0.00019546,2]